fUSD/lending_fUSD_20251024
["ID","MTS","AMOUNT","RATE_DAILY","PERIOD"]
[392295659,1761319842421,-151.0,0.0004,120]
[392295660,1761319842431,-595.102315,0.0004,120]
[392295661,1761319842442,-1553.503653,0.0004,120]
[392295662,1761319842453,-151.0,0.0004,120]
[392295664,1761319842463,-151.0,0.0004,120]
[392295665,1761319842474,-151.0,0.0004,120]
[392295666,1761319842484,-595.102315,0.0004,120]
[392295667,1761319842495,-1553.503653,0.0004,120]
[392295668,1761319842505,-151.0,0.0004,120]
[392295669,1761319842515,-151.0,0.0004,120]
[392295671,1761319842527,-151.0,0.0004,120]
[392295673,1761319842537,-151.0,0.0004,30]
[392295675,1761319842547,-151.0,0.0004,120]
[392295676,1761319842558,-595.102315,0.0004,120]
[392295677,1761319842570,-151.0,0.0004,120]
[392295678,1761319842580,-151.0,0.0004,120]
[392295679,1761319842590,-151.0,0.0004,120]
[392295680,1761319842601,-174.044366,0.0004,120]
[392295681,1761319842612,-260.662743,0.0004,30]
[392295682,1761319842622,-151.0,0.0004,120]
[392295683,1761319842632,-193.773052,0.0004,120]
[392295684,1761319842641,-151.0,0.0004,120]
[392295685,1761319842651,-1038.518583,0.0004,30]
[392295687,1761319842661,-193.773052,0.0004,120]
[392295688,1761319842671,-151.0,0.0004,120]
[392295689,1761319842685,-151.0,0.0004,120]
[392295690,1761319842695,-1038.518583,0.0004,30]
[392295691,1761319842705,-151.0,0.0004,120]
[392295692,1761319842715,-1038.518583,0.0004,30]
[392295693,1761319842725,-193.773052,0.0004,120]
[392295694,1761319842735,-193.773052,0.0004,120]
[392295695,1761319842745,-1038.518583,0.0004,30]
[392295696,1761319842756,-324.029031,0.0004,120]
[392295697,1761319842767,-151.0,0.0004,120]
[392295698,1761319842777,-151.0,0.0004,120]
[392295699,1761319842788,-324.029031,0.0004,120]
[392295700,1761319842800,-151.0,0.0004,120]
[392295701,1761319842812,-262.887357,0.0004,120]
[392295702,1761319842822,-262.887357,0.0004,120]
[392295703,1761319842833,-151.0,0.0004,120]
[392295704,1761319842844,-262.887357,0.0004,120]
[392295705,1761319842854,-151.0,0.0004,120]
[392295706,1761319842865,-151.0,0.0004,120]
[392295707,1761319842875,-262.887357,0.0004,120]
[392295708,1761319842886,-151.0,0.0004,120]
[392295709,1761319842896,-38000.0,0.0004,7]
[392295710,1761319842908,-151.0,0.0004,120]
[392295711,1761319842918,-151.0,0.0004,120]
[392295712,1761319842928,-151.0,0.0004,120]
[392295713,1761319842939,-151.0,0.0004,120]
[392295714,1761319842949,-151.0,0.0004,120]
[392295715,1761319842959,-186.824208,0.0004,120]
[392295716,1761319842969,-460.218743,0.0004,120]
[392295717,1761319842979,-151.0,0.0004,120]
[392295718,1761319842989,-151.0,0.0004,120]
[392295719,1761319842999,-460.218743,0.0004,120]
[392295720,1761319843009,-151.0,0.0004,120]
[392295721,1761319843019,-151.0,0.0004,120]
[392295723,1761319843029,-324.029031,0.0004,120]
[392295724,1761319843039,-324.029031,0.0004,120]
[392295725,1761319843050,-460.218743,0.0004,120]
[392295726,1761319843061,-151.0,0.0004,120]
[392295727,1761319843071,-151.0,0.0004,120]
[392295728,1761319843081,-151.0,0.0004,120]
[392295729,1761319843091,-151.0,0.0004,120]
[392295730,1761319843101,-151.0,0.0004,120]
[392295732,1761319843111,-151.0,0.0004,120]
[392295733,1761319843121,-460.218743,0.0004,120]
[392295734,1761319843131,-204.062059,0.0004,120]
[392295735,1761319843141,-348.846661,0.0004,120]
[392295736,1761319843151,-185.591298,0.0004,120]
[392295737,1761319843161,-200.0,0.00040021,20]
[392295738,1761319843171,-5926.1387029,0.00040079,15]
[392295739,1761319843182,-150.0,0.00040091,7]
[392295740,1761319843193,-1425.0,0.0004012,2]
[392295741,1761319843203,-200.000001,0.00040124,31]
[392295742,1761319843212,-1425.0,0.00040133,2]
[392295743,1761319843222,-3002.0415,0.00040134,2]
[392295744,1761319843232,-1000.0,0.00040134,2]
[392295746,1761319843242,-233.7175,0.00040134,2]
[392295747,1761319843252,-4107.46554538,0.0004016,6]
[392295748,1761319843263,-1404.53873763,0.00040162,2]
[392295749,1761319843273,-158.39,0.00040166,14]
[392295750,1761319843283,-2866.65793699,0.00040167,6]
[392295751,1761319843293,-372537.32349155,0.00040167,6]
[392295752,1761319843305,-13174.88323557,0.00040183,6]
[392295753,1761319843315,-4107.46554538,0.00040184,6]
[392295754,1761319843325,-150.0,0.00040188,7]
[392295755,1761319843335,-8540.38544083,0.0004019,6]
[392295756,1761319843346,-64525.53583964,0.00040191,6]
[392295757,1761319843356,-372537.32349155,0.00040192,6]
[392295758,1761319843367,-64525.53583964,0.00040193,6]
[392295759,1761319843377,-2866.65793699,0.00040194,6]
[392295760,1761319843387,-13174.88323557,0.00040195,6]
[392295761,1761319843397,-5087.2807334,0.00040198,6]
[392295762,1761319843407,-5087.2807334,0.00040199,6]
[392295763,1761319843417,-8540.38544083,0.00040199,6]
[392295764,1761319843427,-5000.0,0.000402,120]
[392295765,1761319843437,-174.88705635,0.000402,120]
[392295766,1761319843447,-174.88705635,0.000402,120]
[392295767,1761319843458,-174.88705635,0.000402,120]
[392295768,1761319843468,-174.88705635,0.000402,120]
[392295769,1761319843478,-151.0,0.0004021,2]
[392295770,1761319843489,-286.91819764,0.0004021,2]
[392295771,1761319843499,-152.66569099,0.00040216,15]
[392295773,1761319843508,-97566.9393563,0.00040224,3]
[392295774,1761319843519,-4664.75613636,0.00040224,3]
[392295775,1761319843530,-150.42,0.00040224,2]
[392295776,1761319843540,-1060.52332431,0.00040224,7]
[392295777,1761319843549,-500.0,0.00040225,7]
[392295778,1761319843562,-500.0,0.00040225,30]
[392295779,1761319843572,-500.0,0.00040233,30]
[392295780,1761319843581,-500.0,0.00040233,2]
[392295781,1761319843591,-500.0,0.00040233,30]
[392295782,1761319843601,-33170.7581,0.00040234,2]
[392295783,1761319843611,-22029.24235222,0.00040234,2]
[392295785,1761319844232,-4197.51150922,0.00040234,2]
[392295786,1761319844246,-1319.84233781,0.00040234,2]
[392295787,1761319844295,-952.73665035,0.00040234,2]
[392295788,1761319844306,-1106.6336011,0.00040234,2]
[392295790,1761319844856,-150.0,0.00036733,120]
[392295791,1761319844866,-150.0,0.00036733,120]
[392295792,1761319844876,-150.0,0.00036733,120]
[392295793,1761319844886,-348.846661,0.0004,120]
[392295794,1761319844895,-151.0,0.0004,120]
[392295795,1761319844905,-348.846661,0.0004,120]
[392295797,1761319844914,-151.0,0.0004,120]
[392295798,1761319844923,-764.125478,0.00040234,2]
[392295808,1761319845835,-150.0,0.00036733,120]
[392295809,1761319845846,-150.0,0.00036733,120]
[392295810,1761319845855,-151.0,0.0004,120]
[392295811,1761319845865,-1100.49498877,0.00040234,2]
[392295812,1761319845878,-413.49474644,0.00040234,2]
[392295813,1761319845942,-17670.04269263,0.00040234,2]
[392295841,1761320006028,500.0,0.00024932,2]
[392295860,1761320326574,-3735.96,0.00035669,10]
[392295879,1761320791132,-378.43189314,0.0003,2]
[392295880,1761320833144,-2.58937238,0.0003,2]
[392295882,1761320945247,574.0,0.0003,2]
[392295884,1761321013835,703.0,0.0003,2]
[392295912,1761321032431,-500.0,0.00035,2]
[392295913,1761321032444,-250.0,0.0003525,2]
[392295914,1761321032454,-353.2021,0.000355,2]
[392295915,1761321032566,-46.7979,0.000355,2]
[392295916,1761321032576,-949.98552931,0.00035669,10]
[392295917,1761321032589,-174.29,0.00035669,2]
[392295918,1761321032599,-293.0,0.00035964,2]
[392295919,1761321032609,-293.0,0.00036363,2]
[392295920,1761321032619,-293.0,0.00036387,2]
[392295921,1761321032631,-1600.0,0.00036483,3]
[392295922,1761321032641,-345.0,0.00036483,2]
[392295923,1761321032651,-11730.58267356,0.00036484,2]
[392295924,1761321032662,-288.51783301,0.00036731,15]
[392295925,1761321032672,-199.86841795,0.00036731,15]
[392295926,1761321032682,-150.0,0.00036732,120]
[392295927,1761321032692,-150.0,0.00036732,120]
[392295928,1761321032702,-8777.59542234,0.00036732,30]
[392295929,1761321037978,-6741.70121056,0.00036732,30]
[392295930,1761321037992,-2322.49309321,0.00036732,30]
[392295941,1761321040162,-2.6353857,0.00036732,30]
[392295943,1761321040741,-24544.57488819,0.00036732,30]
[392295944,1761321040751,-262.08550865,0.00036732,2]
[392295945,1761321040760,-500.0,0.00036733,30]
[392295946,1761321040770,-500.0,0.00036733,30]
[392295947,1761321040780,-476.35224409,0.00036735,30]
[392295948,1761321040789,-161.809,0.00036735,46]
[392295949,1761321040799,-150.0,0.00036789,7]
[392295950,1761321040809,-200.0,0.00036852,2]
[392295951,1761321040819,-305.55,0.00036866,2]
[392295952,1761321040828,-152.53,0.00036936,2]
[392295953,1761321040838,-1403.13,0.00036956,2]
[392295954,1761321040849,-903.03,0.00036966,2]
[392295955,1761321040858,-229.08,0.00036974,120]
[392295956,1761321040868,-237.16,0.00037132,2]
[392295957,1761321040878,-150.0,0.00037198,7]
[392295958,1761321040888,-1091.0,0.00037336,5]
[392295959,1761321040897,-753.0,0.00037357,7]
[392295960,1761321040908,-753.0,0.00037387,2]
[392295961,1761321040918,-891.28256731,0.0003754,2]
[392295962,1761321041182,-753.0,0.00037594,2]
[392295963,1761321041193,-150.0,0.00037607,7]
[392295964,1761321041203,-877.22814602,0.00037737,2]
[392295965,1761321041213,-753.0,0.00037746,2]
[392295966,1761321041223,-755.0,0.00037777,120]
[392295967,1761321041233,-755.0,0.00037811,2]
[392295968,1761321041242,-1533.23572878,0.00037851,2]
[392295969,1761321041253,-877.22814602,0.00037875,2]
[392295970,1761321041262,-150.0,0.0003793,2]
[392295971,1761321041272,-200.6026,0.0003794,2]
[392295972,1761321041281,-233.7175,0.0003794,2]
[392295973,1761321041290,-279.0283,0.0003794,2]
[392295974,1761321041300,-151.0,0.00037954,2]
[392295975,1761321041309,-286.91819764,0.00037954,2]
[392295976,1761321041319,-17504.8,0.00037977,2]
[392295977,1761321041328,-150.0,0.00038015,7]
[392295978,1761321041337,-753.0,0.0003804,7]
[392295979,1761321041346,-445.64128366,0.00038049,2]
[392295980,1761321041356,-877.22814602,0.00038135,2]
[392295981,1761321041366,-756.0,0.00038137,2]
[392295982,1761321041378,-500.0,0.00038137,2]
[392295983,1761321041388,-500.0,0.00038192,2]
[392295984,1761321041398,-1260.71395149,0.00038196,2]
[392295985,1761321041408,-753.0,0.00038238,2]
[392295986,1761321041419,-300.0,0.00038247,2]
[392295987,1761321041428,-250.0,0.00038252,2]
[392295988,1761321041438,-500.0,0.00038267,5]
[392295989,1761321041450,-500.0,0.00038281,30]
[392295990,1761321041460,-430.74709499,0.00038333,30]
[392295991,1761321041469,-903.03,0.00038352,2]
[392295992,1761321041479,-500.0,0.00038378,30]
[392295993,1761321041488,-500.0,0.0003839,30]
[392295994,1761321041498,-150.0,0.00038411,2]
[392295995,1761321041507,-150.0,0.00038411,120]
[392295996,1761321041517,-500.0,0.00038421,30]
[392295997,1761321041526,-150.0,0.00038424,7]
[392295998,1761321041535,-250.0,0.000385,2]
[392295999,1761321041545,-300.0,0.000385,120]
[392296000,1761321041554,-202.87028618,0.00038529,2]
[392296001,1761321041564,-150.0,0.00038529,2]
[392296002,1761321041574,-500.0,0.00038529,2]
[392296003,1761321041583,-179.31213936,0.00038529,2]
[392296004,1761321041593,-500.0,0.00038529,2]
[392296005,1761321041603,-150.0,0.00038529,2]
[392296006,1761321041612,-500.0,0.00038529,2]
[392296007,1761321041622,-150.0,0.00038529,2]
[392296008,1761321041631,-165.94026784,0.00038529,2]
[392296009,1761321041643,-150.0,0.00038529,2]
[392296010,1761321041652,-150.0,0.00038529,2]
[392296011,1761321041662,-500.0,0.00038529,2]
[392296012,1761321041672,-150.0,0.00038529,2]
[392296013,1761321041681,-500.0,0.00038576,30]
[392296014,1761321041691,-150.0,0.00038584,2]
[392296015,1761321041701,-500.0,0.00038584,2]
[392296016,1761321041710,-500.0,0.00038584,2]
[392296017,1761321041725,-150.0,0.00038584,2]
[392296018,1761321041735,-500.0,0.00038584,2]
[392296019,1761321041746,-150.0,0.00038584,2]
[392296020,1761321041756,-150.0,0.00038584,2]
[392296021,1761321041767,-500.0,0.00038584,2]
[392296022,1761321041778,-150.0,0.00038584,2]
[392296023,1761321041790,-877.22814602,0.00038587,2]
[392296024,1761321041800,-500.0,0.00038639,2]
[392296025,1761321041810,-500.0,0.00038639,2]
[392296026,1761321041820,-200.0,0.00038639,2]
[392296027,1761321041830,-500.0,0.00038639,2]
[392296028,1761321041839,-258.28035432,0.00038639,2]
[392296029,1761321041849,-150.0,0.00038639,2]
[392296030,1761321041858,-500.0,0.00038639,2]
[392296031,1761321041869,-150.0,0.00038639,2]
[392296032,1761321041878,-500.0,0.00038664,30]
[392296033,1761321041889,-621.0,0.00038693,2]
[392296034,1761321041902,-500.0,0.00038693,2]
[392296035,1761321041912,-500.0,0.00038693,2]
[392296036,1761321041921,-150.0,0.00038693,2]
[392296037,1761321041931,-500.0,0.00038693,2]
[392296038,1761321041941,-200.0,0.00038693,2]
[392296039,1761321041950,-877.22814602,0.00038698,2]
[392296040,1761321041960,-500.0,0.00038723,30]
[392296041,1761321041970,-514.30865827,0.00038748,2]
[392296042,1761321041980,-500.0,0.00038748,2]
[392296043,1761321041989,-171.9602,0.00038748,2]
[392296044,1761321041998,-500.0,0.00038776,30]
[392296045,1761321042008,-500.0,0.00038793,30]
[392296046,1761321042017,-500.0,0.00038803,2]
[392296047,1761321042027,-410.64907156,0.00038815,5]
[392296048,1761321042036,-500.0,0.00038818,30]
[392296049,1761321042046,-150.0,0.00038833,7]
[392296050,1761321042056,-8998.7031616,0.00038835,2]
[392296051,1761321042066,-446.79605905,0.00038858,2]
[392296052,1761321042076,-500.0,0.00038929,30]
[392296053,1761321042086,-110522.92924851,0.00038935,2]
[392296054,1761321042095,-753.0,0.00038935,2]
[392296055,1761321042111,-4059.8188,0.00038952,2]
[392296056,1761321042121,-877.22814602,0.00038959,2]
[392296057,1761321042130,-504.64657269,0.00038973,5]
[392296058,1761321042142,-152.53,0.00038988,2]
[392296059,1761321042151,-191.02809132,0.00039009,2]
[392296060,1761321042161,-500.0,0.00039016,30]
[392296061,1761321042172,-500.0,0.00039022,30]
[392296062,1761321042183,-500.0,0.00039041,30]
[392296063,1761321042194,-500.0,0.0003905,30]
[392296064,1761321042204,-755.0,0.00039052,7]
[392296065,1761321042214,-753.0,0.000391,7]
[392296066,1761321042224,-8998.70316156,0.00039136,2]
[392296067,1761321042234,-432.14,0.00039156,2]
[392296068,1761321042244,-500.0,0.00039223,30]
[392296069,1761321042254,-150.0,0.00039242,7]
[392296070,1761321042265,-500.0,0.00039263,30]
[392296071,1761321042275,-500.0,0.00039263,2]
[392296072,1761321042284,-696.48,0.0003928,2]
[392296073,1761321042295,-1091.0,0.00039301,5]
[392296074,1761321042305,-500.0,0.00039302,30]
[392296075,1761321042314,-519.72252991,0.00039349,30]
[392296076,1761321042325,-500.0,0.00039349,30]
[392296077,1761321042335,-500.0,0.00039349,30]
[392296078,1761321042344,-500.0,0.00039349,7]
[392296079,1761321042354,-500.0,0.00039375,2]
[392296080,1761321042366,-500.0,0.00039375,2]
[392296081,1761321042376,-500.0,0.00039376,30]
[392296082,1761321042386,-877.22814602,0.00039423,2]
[392296083,1761321042396,-251.97852004,0.00039429,20]
[392296084,1761321042407,-500.0,0.0003943,2]
[392296085,1761321042417,-500.0,0.0003943,2]
[392296086,1761321042427,-8998.70316156,0.00039437,2]
[392296087,1761321042437,-1100.0,0.00039451,7]
[392296088,1761321042448,-500.0,0.00039451,7]
[392296089,1761321042458,-500.0,0.00039451,7]
[392296090,1761321042467,-753.0,0.00039466,120]
[392296091,1761321042477,-250.0,0.00039485,2]
[392296092,1761321042487,-500.0,0.00039485,2]
[392296093,1761321042496,-500.0,0.00039485,30]
[392296094,1761321042505,-500.0,0.00039514,30]
[392296095,1761321042515,-500.0,0.0003953,30]
[392296096,1761321042524,-500.0,0.00039539,2]
[392296097,1761321042534,-500.0,0.00039583,30]
[392296098,1761321042543,-877.22814602,0.00039585,2]
[392296099,1761321042553,-237.16,0.0003962,14]
[392296100,1761321042563,-150.0,0.0003965,7]
[392296101,1761321042572,-200.0,0.000397,14]
[392296102,1761321042582,-8998.70316156,0.00039738,2]
[392296103,1761321042591,-903.03,0.00039738,2]
[392296104,1761321042602,-500.0,0.00039785,30]
[392296105,1761321042612,-500.0,0.000398,14]
[392296106,1761321042622,-7000.0,0.000398,2]
[392296107,1761321042631,-500.0,0.00039811,30]
[392296108,1761321042641,-525.76585025,0.00039859,30]
[392296109,1761321042651,-3002.0415,0.00039878,2]
[392296110,1761321042661,-500.0,0.00039885,30]
[392296111,1761321042670,-164.594613,0.000399,120]
[392296113,1761321042681,-1987.24765177,0.000399,120]
[392296115,1761321042690,-187.55493398,0.000399,120]
[392296117,1761321042700,-181.04145175,0.000399,120]
[392296119,1761321042709,-206.10271692,0.000399,120]
[392296120,1761321042718,-215.57209124,0.000399,120]
[392296121,1761321042727,-220.63770462,0.000399,120]
[392296122,1761321042737,-800.0,0.000399,14]
[392296123,1761321042747,-877.22814607,0.00039913,2]
[392296124,1761321042757,-150.0,0.00039969,14]
[392296125,1761321042766,-237.16,0.00039976,14]
[392296126,1761321042776,-672.49,0.00039978,2]
[392296127,1761321042785,-1094.92,0.00039978,2]
[392296128,1761321042795,-1094.81,0.00039978,2]
[392296129,1761321042804,-547.6,0.0003998,2]
[392296130,1761321042814,-2416.99,0.0003998,2]
[392296131,1761321042823,-377.62,0.0003998,2]
[392296132,1761321042833,-168.52,0.0003998,2]
[392296133,1761321042843,-300.0,0.0003998,2]
[392296134,1761321042852,-150.0,0.0003998,2]
[392296135,1761321042862,-150.0,0.0003998,2]
[392296136,1761321042883,-150.0,0.0003998,2]
[392296137,1761321042893,-150.0,0.0003998,2]
[392296139,1761321042903,-151.78,0.0003998,2]
[392296141,1761321042913,-150.0,0.0003998,2]
[392296143,1761321042922,-547.6,0.0003998,2]
[392296146,1761321042931,-150.0,0.0003998,2]
[392296149,1761321042941,-150.0,0.0003998,2]
[392296150,1761321042951,-151.85,0.0003998,2]
[392296151,1761321042960,-150.0,0.0003998,2]
[392296152,1761321042969,-150.0,0.0003998,2]
[392296153,1761321042978,-150.0,0.0003998,2]
[392296154,1761321042987,-150.0,0.0003998,2]
[392296155,1761321042996,-150.0,0.0003998,2]
[392296156,1761321043006,-168.52,0.0003998,2]
[392296157,1761321043015,-547.6,0.0003998,2]
[392296158,1761321043024,-150.0,0.0003998,2]
[392296159,1761321043034,-547.6,0.0003998,2]
[392296160,1761321043043,-176.35,0.0003998,2]
[392296161,1761321043053,-547.6,0.0003998,2]
[392296162,1761321043063,-558.56,0.0003998,2]
[392296163,1761321043073,-168.52,0.0003998,2]
[392296164,1761321043082,-547.6,0.0003998,2]
[392296165,1761321043092,-547.6,0.0003998,2]
[392296166,1761321043102,-414.35,0.0003998,2]
[392296167,1761321043111,-168.52,0.0003998,2]
[392296168,1761321043120,-500.0,0.00039999,30]
[392296169,1761321043130,-13283.22761928,0.0004,10]
[392296170,1761321043143,-2000.0,0.0004,2]
[392296171,1761321043153,-476.35224409,0.0004,120]
[392296172,1761321043163,-1500.0,0.0004,120]
[392296173,1761321043174,-476.35224409,0.0004,10]
[392296174,1761321043185,-200.0,0.00040013,20]
[392296175,1761321043196,-1000.0,0.00040034,2]
[392296176,1761321043206,-2500.0,0.00040034,2]
[392296177,1761321043216,-7316.06749082,0.00040034,15]
[392296178,1761321043226,-8998.70316156,0.00040039,15]
[392296179,1761321043236,-927.60820628,0.00040055,12]
[392296180,1761321043246,-150.0,0.00040059,7]
[392296181,1761321043256,-1000.0,0.000401,7]
[392296182,1761321043266,-756.0,0.00040111,7]
[392296183,1761321043276,-1000.0,0.00040134,2]
[392296184,1761321043285,-33170.7581,0.00040134,2]
[392296185,1761321043295,-3450.2968,0.00040134,60]
[392296186,1761321043305,-57835.5101421,0.00040155,3]
[392296187,1761321043315,-19278.5033807,0.00040155,3]
[392296188,1761321043325,-4270.19272041,0.00040162,6]
[392296189,1761321043335,-6587.44161778,0.00040162,6]
[392296190,1761321043345,-32262.76791982,0.00040163,6]
[392296191,1761321043355,-500.0,0.00040164,30]
[392296192,1761321043367,-500.0,0.00040164,2]
[392296193,1761321043380,-500.0,0.00040164,7]
[392296194,1761321043390,-96392.5169034,0.00040165,3]
[392296195,1761321043400,-47930.7548823,0.00040165,3]
[392296196,1761321043410,-38557.0067614,0.00040165,3]
[392296197,1761321043423,-15976.9182941,0.00040165,3]
[392296198,1761321043433,-19278.5033807,0.00040167,3]
[392296199,1761321043444,-15976.9182941,0.00040167,3]
[392296200,1761321043454,-1433.3289685,0.00040169,6]
[392296201,1761321043464,-1433.32896849,0.00040171,6]
[392296202,1761321043474,-392.77690881,0.00040173,5]
[392296203,1761321043484,-1433.3289685,0.00040173,6]
[392296204,1761321043493,-1425.0,0.00040173,2]
[392296205,1761321043503,-4270.19272042,0.00040173,6]
[392296206,1761321043513,-500.0,0.00040174,30]
[392296207,1761321043522,-500.0,0.00040174,2]
[392296208,1761321043533,-500.0,0.00040174,7]
[392296210,1761321043543,-500.0,0.00040174,30]
[392296211,1761321043553,-1433.32896849,0.00040174,6]
[392296212,1761321043563,-6587.44161779,0.00040175,6]
[392296213,1761321043573,-192905.9012,0.00040175,2]
[392296214,1761321043583,-30458.8787684,0.00040175,2]
[392296215,1761321043593,-5172.4021594,0.00040175,2]
[392296216,1761321043602,-9441.6492743,0.00040175,2]
[392296217,1761321043612,-151.0,0.00040175,120]
[392296218,1761321043622,-151.0,0.00040175,120]
[392296219,1761321043631,-151.0,0.00040175,120]
[392296220,1761321043641,-313.961994,0.00040175,120]
[392296221,1761321043651,-151.0,0.00040175,120]
[392296222,1761321043661,-151.0,0.00040175,120]
[392296223,1761321043671,-151.0,0.00040175,120]
[392296224,1761321043683,-313.961994,0.00040175,120]
[392296225,1761321043694,-151.0,0.00040175,120]
[392296226,1761321043705,-1491.363506,0.00040175,120]
[392296227,1761321043715,-151.0,0.00040175,120]
[392296228,1761321043725,-151.0,0.00040175,120]
[392296229,1761321043735,-313.961994,0.00040175,120]
[392296230,1761321043745,-151.0,0.00040175,120]
[392296231,1761321043756,-151.0,0.00040175,120]
[392296232,1761321043766,-1491.363506,0.00040175,120]
[392296233,1761321043775,-595.102315,0.00040175,120]
[392296234,1761321043785,-313.961994,0.00040175,120]
[392296235,1761321043794,-1491.363506,0.00040175,120]
[392296236,1761321043806,-151.0,0.00040175,30]
[392296237,1761321043817,-151.0,0.00040175,120]
[392296238,1761321043827,-151.0,0.00040175,120]
[392296239,1761321043837,-151.0,0.00040175,120]
[392296240,1761321043847,-174.044366,0.00040175,120]
[392296241,1761321043856,-595.102315,0.00040175,120]
[392296242,1761321043866,-1491.363506,0.00040175,120]
[392296243,1761321043876,-151.0,0.00040175,120]
[392296244,1761321043886,-151.0,0.00040175,120]
[392296245,1761321043896,-151.0,0.00040175,120]
[392296246,1761321043906,-260.662743,0.00040175,30]
[392296247,1761321043916,-595.102315,0.00040175,120]
[392296248,1761321043926,-151.0,0.00040175,120]
[392296249,1761321043935,-151.0,0.00040175,120]
[392296250,1761321043945,-151.0,0.00040175,120]
[392296251,1761321043955,-595.102315,0.00040175,120]
[392296252,1761321043965,-151.0,0.00040175,120]
[392296253,1761321043975,-151.0,0.00040175,120]
[392296254,1761321043985,-151.0,0.00040175,14]
[392296255,1761321043995,-151.0,0.00040175,120]
[392296256,1761321044006,-220.129253,0.00040175,120]
[392296257,1761321044017,-151.0,0.00040175,120]
[392296258,1761321044027,-151.0,0.00040175,120]
[392296259,1761321044037,-324.029031,0.00040175,120]
[392296260,1761321044047,-220.129253,0.00040175,120]
[392296261,1761321044057,-324.029031,0.00040175,120]
[392296262,1761321044067,-220.129253,0.00040175,120]
[392296263,1761321044077,-324.029031,0.00040175,120]
[392296264,1761321044087,-220.129253,0.00040175,120]
[392296265,1761321044096,-324.029031,0.00040175,120]
[392296266,1761321044106,-151.0,0.00040175,120]
[392296267,1761321044116,-151.0,0.00040175,120]
[392296268,1761321044126,-151.0,0.00040175,120]
[392296269,1761321044136,-460.218743,0.00040175,120]
[392296270,1761321044146,-151.0,0.00040175,120]
[392296271,1761321044156,-151.0,0.00040175,120]
[392296272,1761321044166,-186.824208,0.00040175,120]
[392296273,1761321044176,-460.218743,0.00040175,120]
[392296274,1761321044185,-151.0,0.00040175,120]
[392296275,1761321044195,-151.0,0.00040175,120]
[392296276,1761321044205,-460.218743,0.00040175,120]
[392296277,1761321044215,-151.0,0.00040175,120]
[392296278,1761321044224,-151.0,0.00040175,120]
[392296279,1761321044235,-151.0,0.00040175,120]
[392296280,1761321044246,-151.0,0.00040175,120]
[392296281,1761321044256,-460.218743,0.00040175,120]
[392296282,1761321044267,-151.0,0.00040175,120]
[392296283,1761321044277,-151.0,0.00040175,120]
[392296284,1761321044286,-151.0,0.00040175,120]
[392296285,1761321044296,-185.591298,0.00040175,120]
[392296286,1761321044307,-151.000001,0.00040175,120]
[392296287,1761321044317,-151.0,0.00040175,120]
[392296288,1761321044327,-151.0,0.00040175,120]
[392296289,1761321044338,-186268.66174578,0.00040175,6]
[392296290,1761321044347,-2053.73277269,0.00040176,6]
[392296291,1761321044357,-5087.2807334,0.00040177,6]
[392296292,1761321044368,-15976.9182941,0.00040177,3]
[392296293,1761321044380,-5087.2807334,0.00040179,6]
[392296294,1761321044389,-4270.19272042,0.00040182,6]